[Event "Chessable Masters - Torneo preliminare"]
[White "Pranav, V"]
[Black "Wagner, Dennis"]
[WhiteFideId "25060783"]
[BlackFideId "24650684"]
[WhiteElo "2462"]
[BlackElo "2456"]
[Result "0-1"]
[Round "4"]
[TimeControl "600+2"]
[Date "2023.03.13"]
[WhiteClock "0:00:02"]
[BlackClock "0:00:16"]

1. e4 {[%clk 0:10:01]}  e5 {[%clk 0:10:00]} 2. Nf3 {[%clk 0:10:02]}  Nc6 {[%clk 0:10:02]} 3. Bb5 {[%clk 0:10:02]}  a6 {[%clk 0:10:02]} 4. Ba4 {[%clk 0:10:02]}  Nf6 {[%clk 0:10:04]} 5. O-O {[%clk 0:10:02]}  Be7 {[%clk 0:10:03]} 6. d3 {[%clk 0:10:03]}  b5 {[%clk 0:09:59]} 7. Bb3 {[%clk 0:10:04]}  d6 {[%clk 0:10:01]} 8. c3 {[%clk 0:09:56]}  O-O {[%clk 0:09:46]} 9. Nbd2 {[%clk 0:09:56]}  Na5 {[%clk 0:09:40]} 10. Bc2 {[%clk 0:09:56]}  c5 {[%clk 0:09:42]} 11. Re1 {[%clk 0:09:58]}  Nc6 {[%clk 0:09:39]} 12. Nf1 {[%clk 0:09:59]}  h6 {[%clk 0:09:38]} 13. Ng3 {[%clk 0:09:59]}  Re8 {[%clk 0:09:38]} 14. h3 {[%clk 0:10:00]}  Bf8 {[%clk 0:09:39]} 15. a4 {[%clk 0:09:59]}  Be6 {[%clk 0:09:30]} 16. Nh2 {[%clk 0:09:59]}  d5 {[%clk 0:09:07]} 17. Qf3 {[%clk 0:09:58]}  Rc8 {[%clk 0:08:20]} 18. axb5 {[%clk 0:09:27]}  axb5 {[%clk 0:08:19]} 19. exd5 {[%clk 0:09:29]}  Bxd5 {[%clk 0:07:44]} 20. Ne4 {[%clk 0:09:28]}  Nxe4 {[%clk 0:07:40]} 21. dxe4 {[%clk 0:09:28]}  Be6 {[%clk 0:07:42]} 22. Ng4 {[%clk 0:09:23]}  Bxg4 {[%clk 0:07:09]} 23. Qxg4 {[%clk 0:09:21]}  Qf6 {[%clk 0:06:59]} 24. Be3 {[%clk 0:09:05]}  Ra8 {[%clk 0:06:59]} 25. Rad1 {[%clk 0:09:00]}  c4 {[%clk 0:06:26]} 26. Rd5 {[%clk 0:08:07]}  Rab8 {[%clk 0:06:26]} 27. Red1 {[%clk 0:07:50]}  Qe6 {[%clk 0:06:27]} 28. Qf3 {[%clk 0:07:38]}  Red8 {[%clk 0:06:13]} 29. R1d2 {[%clk 0:07:25]}  Be7 {[%clk 0:05:59]} 30. Qg3 {[%clk 0:07:07]}  Bd6 {[%clk 0:05:35]} 31. Rd1 {[%clk 0:06:04]}  Ne7 {[%clk 0:05:32]} 32. R5d2 {[%clk 0:05:59]}  Bc7 {[%clk 0:05:20]} 33. Ra1 {[%clk 0:05:52]}  Rxd2 {[%clk 0:05:03]} 34. Bxd2 {[%clk 0:05:54]}  Bb6 {[%clk 0:05:02]} 35. Be3 {[%clk 0:05:35]}  Bxe3 {[%clk 0:04:59]} 36. Qxe3 {[%clk 0:05:37]}  Ng6 {[%clk 0:04:55]} 37. Bd1 {[%clk 0:05:06]}  Nf4 {[%clk 0:04:50]} 38. Bg4 {[%clk 0:05:06]}  Qd6 {[%clk 0:04:33]} 39. Qa7 {[%clk 0:04:15]}  h5 {[%clk 0:04:16]} 40. Bf3 {[%clk 0:04:05]}  Rf8 {[%clk 0:03:32]} 41. Rd1 {[%clk 0:03:35]}  Qg6 {[%clk 0:03:22]} 42. Kh2 {[%clk 0:03:35]}  Nd3 {[%clk 0:03:17]} 43. b4 {[%clk 0:03:02]}  Qc6 {[%clk 0:03:07]} 44. Qe3 {[%clk 0:02:59]}  g6 {[%clk 0:03:00]} 45. g3 {[%clk 0:02:50]}  Ra8 {[%clk 0:02:15]} 46. Be2 {[%clk 0:02:47]}  Ra3 {[%clk 0:02:07]} 47. Bxd3 {[%clk 0:01:42]}  Rxc3 {[%clk 0:02:07]} 48. Qe2 {[%clk 0:01:43]}  cxd3 {[%clk 0:02:04]} 49. Rxd3 {[%clk 0:01:45]}  Qc4 {[%clk 0:01:16]} 50. Rd8+ {[%clk 0:01:34]}  Kg7 {[%clk 0:01:17]} 51. Qd2 {[%clk 0:01:01]}  Rc2 {[%clk 0:01:08]} 52. Qe3 {[%clk 0:01:02]}  Qxb4 {[%clk 0:01:05]} 53. Rd5 {[%clk 0:00:44]}  Qb2 {[%clk 0:00:59]} 54. Kg2 {[%clk 0:00:43]}  b4 {[%clk 0:01:00]} 55. Rd6 {[%clk 0:00:39]}  Qc3 {[%clk 0:00:24]} 56. Rd3 {[%clk 0:00:26]}  Qc5 {[%clk 0:00:20]} 57. Qf3 {[%clk 0:00:25]}  Rc3 {[%clk 0:00:21]} 58. Qd1 {[%clk 0:00:09]}  Qc4 {[%clk 0:00:18]} 59. Rd7 {[%clk 0:00:03]}  Qxe4+ {[%clk 0:00:19]} 60. Kh2 {[%clk 0:00:04]}  Qf3 {[%clk 0:00:19]} 61. Qd2 {[%clk 0:00:04]}  b3 {[%clk 0:00:17]} 62. Re7 {[%clk 0:00:02]}  Rc2 {[%clk 0:00:16]} 0-1


[Site "Internet"]

[Event "Chessable Masters - Torneo preliminare"]
[White "Lobanov, Sergei"]
[Black "Maghsoodloo, Parham"]
[WhiteFideId "24183750"]
[BlackFideId "12539929"]
[WhiteElo "2436"]
[BlackElo "2660"]
[Result "1-0"]
[Round "4"]
[TimeControl "600+2"]
[Date "2023.03.13"]
[WhiteClock "0:03:47"]
[BlackClock "0:04:07"]

1. d4 {[%clk 0:09:59]}  Nf6 {[%clk 0:10:00]} 2. c4 {[%clk 0:10:00]}  e6 {[%clk 0:10:00]} 3. Nc3 {[%clk 0:10:01]}  Bb4 {[%clk 0:10:01]} 4. e3 {[%clk 0:10:02]}  O-O {[%clk 0:10:01]} 5. Bd3 {[%clk 0:10:03]}  d5 {[%clk 0:10:02]} 6. a3 {[%clk 0:10:03]}  Bxc3+ {[%clk 0:10:02]} 7. bxc3 {[%clk 0:10:04]}  dxc4 {[%clk 0:10:03]} 8. Bxc4 {[%clk 0:10:05]}  c5 {[%clk 0:10:03]} 9. Ne2 {[%clk 0:10:06]}  Nc6 {[%clk 0:10:04]} 10. O-O {[%clk 0:09:53]}  b6 {[%clk 0:10:04]} 11. f3 {[%clk 0:09:06]}  e5 {[%clk 0:10:05]} 12. d5 {[%clk 0:08:56]}  Na5 {[%clk 0:10:05]} 13. Ba2 {[%clk 0:08:58]}  e4 {[%clk 0:10:00]} 14. c4 {[%clk 0:08:36]}  Ba6 {[%clk 0:09:53]} 15. Qc2 {[%clk 0:08:14]}  Re8 {[%clk 0:09:18]} 16. Bb2 {[%clk 0:08:01]}  exf3 {[%clk 0:09:17]} 17. Rxf3 {[%clk 0:08:02]}  Ne4 {[%clk 0:09:13]} 18. Raf1 {[%clk 0:06:55]}  f6 {[%clk 0:09:12]} 19. Ng3 {[%clk 0:06:22]}  Qe7 {[%clk 0:07:57]} 20. Bb1 {[%clk 0:05:01]}  Ng5 {[%clk 0:07:58]} 21. h4 {[%clk 0:04:46]}  Nxf3+ {[%clk 0:07:58]} 22. Rxf3 {[%clk 0:04:47]}  g6 {[%clk 0:07:30]} 23. Rxf6 {[%clk 0:04:47]}  Qxe3+ {[%clk 0:07:26]} 24. Kh2 {[%clk 0:04:47]}  Qh6 {[%clk 0:07:19]} 25. Nf5 {[%clk 0:03:51]}  Qh5 {[%clk 0:04:02]} 26. Qc3 {[%clk 0:03:45]}  Re2 {[%clk 0:04:03]} 27. Rf8+ {[%clk 0:03:42]}  Kxf8 {[%clk 0:04:04]} 28. Qg7+ {[%clk 0:03:44]}  Ke8 {[%clk 0:04:05]} 29. Nd6+ {[%clk 0:03:46]}  Kd8 {[%clk 0:04:07]} 30. Bf6+ {[%clk 0:03:47]} 1-0


[Site "Internet"]

[Event "Chessable Masters - Torneo preliminare"]
[White "Henriquez Villagra, Cristobal"]
[Black "Predke, Alexandr"]
[WhiteFideId "3409350"]
[BlackFideId "24107581"]
[WhiteElo "2574"]
[BlackElo "2582"]
[Result "1-0"]
[Round "4"]
[TimeControl "600+2"]
[Date "2023.03.13"]
[WhiteClock "0:01:02"]
[BlackClock "0:00:36"]

1. e4 {[%clk 0:10:01]}  c5 {[%clk 0:10:00]} 2. Nf3 {[%clk 0:10:02]}  e6 {[%clk 0:10:01]} 3. g3 {[%clk 0:09:38]}  Nc6 {[%clk 0:10:00]} 4. Bg2 {[%clk 0:09:38]}  Nf6 {[%clk 0:10:01]} 5. d3 {[%clk 0:09:35]}  d6 {[%clk 0:10:01]} 6. O-O {[%clk 0:09:32]}  Be7 {[%clk 0:10:02]} 7. Nc3 {[%clk 0:09:23]}  O-O {[%clk 0:10:03]} 8. a3 {[%clk 0:09:19]}  Rb8 {[%clk 0:09:51]} 9. Rb1 {[%clk 0:09:14]}  b6 {[%clk 0:09:37]} 10. b4 {[%clk 0:09:09]}  Bb7 {[%clk 0:09:39]} 11. b5 {[%clk 0:08:58]}  Nd4 {[%clk 0:09:34]} 12. Re1 {[%clk 0:07:28]}  Nd7 {[%clk 0:09:21]} 13. Bb2 {[%clk 0:07:19]}  Bf6 {[%clk 0:09:19]} 14. a4 {[%clk 0:07:20]}  Rc8 {[%clk 0:09:04]} 15. Nd2 {[%clk 0:07:09]}  Qc7 {[%clk 0:08:53]} 16. Na2 {[%clk 0:07:00]}  e5 {[%clk 0:08:36]} 17. h4 {[%clk 0:06:56]}  g6 {[%clk 0:08:36]} 18. Nc3 {[%clk 0:06:50]}  Bg7 {[%clk 0:08:35]} 19. Nc4 {[%clk 0:06:52]}  Nf6 {[%clk 0:08:35]} 20. Bc1 {[%clk 0:06:50]}  Ne6 {[%clk 0:08:22]} 21. Bg5 {[%clk 0:06:42]}  Rce8 {[%clk 0:08:12]} 22. a5 {[%clk 0:06:31]}  Nd7 {[%clk 0:07:52]} 23. Bd2 {[%clk 0:06:16]}  f5 {[%clk 0:07:46]} 24. axb6 {[%clk 0:05:56]}  axb6 {[%clk 0:07:46]} 25. Ra1 {[%clk 0:05:53]}  f4 {[%clk 0:07:19]} 26. Ra7 {[%clk 0:05:49]}  Nf6 {[%clk 0:06:39]} 27. gxf4 {[%clk 0:04:25]}  Nh5 {[%clk 0:06:17]} 28. Nd5 {[%clk 0:04:08]}  Qb8 {[%clk 0:06:05]} 29. Rxb7 {[%clk 0:04:09]}  Qxb7 {[%clk 0:06:07]} 30. Nxd6 {[%clk 0:04:11]}  Qd7 {[%clk 0:06:05]} 31. Nxe8 {[%clk 0:04:09]}  Qxe8 {[%clk 0:06:07]} 32. f5 {[%clk 0:03:48]}  Nef4 {[%clk 0:05:56]} 33. Nxf4 {[%clk 0:02:25]}  Nxf4 {[%clk 0:05:57]} 34. Qg4 {[%clk 0:02:26]}  Qxb5 {[%clk 0:05:31]} 35. Bxf4 {[%clk 0:02:23]}  exf4 {[%clk 0:05:33]} 36. fxg6 {[%clk 0:02:24]}  hxg6 {[%clk 0:05:27]} 37. e5 {[%clk 0:02:17]}  Qb4 {[%clk 0:04:45]} 38. Re4 {[%clk 0:01:56]}  Qb1+ {[%clk 0:04:45]} 39. Kh2 {[%clk 0:01:56]}  f3 {[%clk 0:04:33]} 40. Bxf3 {[%clk 0:01:46]}  Qxc2 {[%clk 0:04:26]} 41. Kg2 {[%clk 0:01:47]}  Qxd3 {[%clk 0:04:20]} 42. e6 {[%clk 0:01:47]}  Re8 {[%clk 0:01:46]} 43. Qxg6 {[%clk 0:01:26]}  Re7 {[%clk 0:01:43]} 44. Bg4 {[%clk 0:01:26]}  Qc3 {[%clk 0:01:18]} 45. Rf4 {[%clk 0:01:08]}  Qe5 {[%clk 0:00:39]} 46. Rf7 {[%clk 0:01:02]}  Rxf7 {[%clk 0:00:38]} 47. Qxf7+ {[%clk 0:01:03]}  Kh7 {[%clk 0:00:36]} 48. Bf5+ {[%clk 0:01:02]} 1-0


[Site "Internet"]

[Event "Chessable Masters - Torneo preliminare"]
[White "Lenderman, Aleksandr"]
[Black "Preotu, Razvan"]
[WhiteFideId "2021285"]
[BlackFideId "2613280"]
[WhiteElo "2646"]
[BlackElo "2532"]
[Result "0-1"]
[Round "4"]
[TimeControl "600+2"]
[Date "2023.03.13"]
[WhiteClock "0:02:09"]
[BlackClock "0:00:16"]

1. Nf3 {[%clk 0:10:00]}  c5 {[%clk 0:09:52]} 2. b3 {[%clk 0:10:00]}  Nf6 {[%clk 0:09:46]} 3. Bb2 {[%clk 0:10:01]}  Nc6 {[%clk 0:09:09]} 4. c4 {[%clk 0:09:55]}  d5 {[%clk 0:09:06]} 5. cxd5 {[%clk 0:09:54]}  Nxd5 {[%clk 0:09:08]} 6. Nc3 {[%clk 0:09:54]}  Nxc3 {[%clk 0:09:06]} 7. Bxc3 {[%clk 0:09:49]}  f6 {[%clk 0:09:05]} 8. e3 {[%clk 0:09:21]}  e5 {[%clk 0:09:06]} 9. Bc4 {[%clk 0:09:22]}  Bf5 {[%clk 0:09:06]} 10. O-O {[%clk 0:09:18]}  Bd3 {[%clk 0:08:48]} 11. Bxd3 {[%clk 0:08:28]}  Qxd3 {[%clk 0:08:50]} 12. Qb1 {[%clk 0:08:29]}  O-O-O {[%clk 0:08:34]} 13. Qxd3 {[%clk 0:08:25]}  Rxd3 {[%clk 0:08:36]} 14. Rfd1 {[%clk 0:08:27]}  Be7 {[%clk 0:07:51]} 15. Kf1 {[%clk 0:08:24]}  Rhd8 {[%clk 0:07:51]} 16. Ke2 {[%clk 0:08:25]}  b5 {[%clk 0:07:24]} 17. g4 {[%clk 0:08:20]}  b4 {[%clk 0:06:45]} 18. Bb2 {[%clk 0:08:08]}  Kb7 {[%clk 0:05:52]} 19. Rac1 {[%clk 0:07:53]}  a5 {[%clk 0:05:52]} 20. Nd4 {[%clk 0:07:07]}  R3xd4 {[%clk 0:05:02]} 21. exd4 {[%clk 0:07:06]}  exd4 {[%clk 0:04:58]} 22. f4 {[%clk 0:06:41]}  a4 {[%clk 0:04:34]} 23. Rb1 {[%clk 0:06:34]}  a3 {[%clk 0:04:22]} 24. Ba1 {[%clk 0:06:17]}  f5 {[%clk 0:03:50]} 25. g5 {[%clk 0:05:44]}  Bd6 {[%clk 0:03:37]} 26. Kd3 {[%clk 0:04:51]}  Bxf4 {[%clk 0:03:22]} 27. Rf1 {[%clk 0:04:52]}  Ne5+ {[%clk 0:03:22]} 28. Kc2 {[%clk 0:04:53]}  Bxg5 {[%clk 0:02:41]} 29. Rxf5 {[%clk 0:04:54]}  Bf6 {[%clk 0:02:43]} 30. Rbf1 {[%clk 0:04:54]}  Kc6 {[%clk 0:02:32]} 31. h4 {[%clk 0:04:55]}  Kd5 {[%clk 0:02:29]} 32. h5 {[%clk 0:04:54]}  h6 {[%clk 0:02:30]} 33. Re1 {[%clk 0:04:27]}  Ke6 {[%clk 0:02:19]} 34. Rf4 {[%clk 0:04:25]}  Rd5 {[%clk 0:02:17]} 35. Ree4 {[%clk 0:04:24]}  Rd8 {[%clk 0:01:14]} 36. Kd1 {[%clk 0:04:18]}  Rb8 {[%clk 0:00:29]} 37. Ke2 {[%clk 0:04:11]}  Kd5 {[%clk 0:00:29]} 38. Bxd4 {[%clk 0:04:07]}  cxd4 {[%clk 0:00:31]} 39. Rxd4+ {[%clk 0:04:08]}  Kc5 {[%clk 0:00:33]} 40. Rde4 {[%clk 0:04:04]}  Nc6 {[%clk 0:00:30]} 41. Rc4+ {[%clk 0:03:51]}  Kd6 {[%clk 0:00:28]} 42. d4 {[%clk 0:03:45]}  Rb5 {[%clk 0:00:29]} 43. Kd3 {[%clk 0:03:14]}  Rxh5 {[%clk 0:00:30]} 44. Ke4 {[%clk 0:03:15]}  Rh2 {[%clk 0:00:22]} 45. d5 {[%clk 0:03:16]}  Ne7 {[%clk 0:00:23]} 46. Rf3 {[%clk 0:03:07]}  Nxd5 {[%clk 0:00:10]} 47. Rd3 {[%clk 0:03:08]}  Rh4+ {[%clk 0:00:11]} 48. Kf5 {[%clk 0:03:02]}  Rh5+ {[%clk 0:00:13]} 49. Kg6 {[%clk 0:03:03]}  Rg5+ {[%clk 0:00:14]} 50. Kf7 {[%clk 0:03:04]}  Bc3 {[%clk 0:00:06]} 51. Rc8 {[%clk 0:02:58]}  Ke5 {[%clk 0:00:05]} 52. Re8+ {[%clk 0:02:49]}  Kf4 {[%clk 0:00:07]} 53. Re2 {[%clk 0:02:45]}  Nf6 {[%clk 0:00:07]} 54. Rd1 {[%clk 0:02:24]}  Ng4 {[%clk 0:00:07]} 55. Rf1+ {[%clk 0:02:23]}  Kg3 {[%clk 0:00:09]} 56. Kg8 {[%clk 0:02:15]}  h5 {[%clk 0:00:10]} 57. Rg1+ {[%clk 0:02:07]}  Kf3 {[%clk 0:00:11]} 58. Rc2 {[%clk 0:02:08]}  h4 {[%clk 0:00:12]} 59. Rf1+ {[%clk 0:02:09]}  Ke3 {[%clk 0:00:13]} 60. Rg2 {[%clk 0:02:09]}  Nh6+ {[%clk 0:00:14]} 61. Kh7 {[%clk 0:02:09]}  Rxg2 {[%clk 0:00:16]} 0-1


[Site "Internet"]

[Event "Chessable Masters - Torneo preliminare"]
[White "Christiansen, Johan-Sebastian"]
[Black "Sjugirov, Sanan"]
[WhiteFideId "1512668"]
[BlackFideId "4189302"]
[WhiteElo "2481"]
[BlackElo "2543"]
[Result "0-1"]
[Round "4"]
[TimeControl "600+2"]
[Date "2023.03.13"]
[WhiteClock "0:01:01"]
[BlackClock "0:03:45"]

1. e4 {[%clk 0:10:00]}  c5 {[%clk 0:09:58]} 2. Nf3 {[%clk 0:09:55]}  Nc6 {[%clk 0:09:59]} 3. b4 {[%clk 0:09:56]}  cxb4 {[%clk 0:09:48]} 4. d4 {[%clk 0:09:57]}  d6 {[%clk 0:09:33]} 5. d5 {[%clk 0:09:42]}  Nb8 {[%clk 0:09:34]} 6. a3 {[%clk 0:09:42]}  bxa3 {[%clk 0:09:33]} 7. Nxa3 {[%clk 0:09:36]}  Nf6 {[%clk 0:09:32]} 8. Bb5+ {[%clk 0:08:18]}  Nbd7 {[%clk 0:09:28]} 9. e5 {[%clk 0:08:06]}  dxe5 {[%clk 0:09:28]} 10. Nxe5 {[%clk 0:08:08]}  g6 {[%clk 0:09:10]} 11. O-O {[%clk 0:07:59]}  Bg7 {[%clk 0:09:11]} 12. Bb2 {[%clk 0:07:56]}  O-O {[%clk 0:09:10]} 13. Nf3 {[%clk 0:07:05]}  a6 {[%clk 0:08:57]} 14. Be2 {[%clk 0:07:06]}  b5 {[%clk 0:08:33]} 15. Nxb5 {[%clk 0:07:03]}  Rb8 {[%clk 0:08:34]} 16. Bxf6 {[%clk 0:06:50]}  Nxf6 {[%clk 0:08:33]} 17. Nbd4 {[%clk 0:06:42]}  Qxd5 {[%clk 0:08:26]} 18. Bxa6 {[%clk 0:06:43]}  Bxa6 {[%clk 0:07:46]} 19. Rxa6 {[%clk 0:06:45]}  Rfc8 {[%clk 0:07:47]} 20. Re1 {[%clk 0:06:05]}  Qc4 {[%clk 0:07:26]} 21. Ra7 {[%clk 0:06:02]}  Nd5 {[%clk 0:07:26]} 22. h4 {[%clk 0:05:51]}  Rb4 {[%clk 0:07:06]} 23. Ne2 {[%clk 0:04:52]}  Bf6 {[%clk 0:06:24]} 24. Ng3 {[%clk 0:04:51]}  Nc3 {[%clk 0:05:41]} 25. Qd2 {[%clk 0:04:30]}  Nb5 {[%clk 0:05:08]} 26. Rb7 {[%clk 0:04:31]}  Bc3 {[%clk 0:04:47]} 27. Qh6 {[%clk 0:04:33]}  Bxe1 {[%clk 0:04:39]} 28. Nh5 {[%clk 0:04:02]}  Bxf2+ {[%clk 0:04:12]} 29. Kxf2 {[%clk 0:03:13]}  Qxc2+ {[%clk 0:03:52]} 30. Kg3 {[%clk 0:02:54]}  gxh5 {[%clk 0:03:51]} 31. Qxh5 {[%clk 0:00:54]}  Qg6+ {[%clk 0:03:49]} 32. Qxg6+ {[%clk 0:00:55]}  hxg6 {[%clk 0:03:50]} 33. Rxe7 {[%clk 0:00:56]}  Nd4 {[%clk 0:03:47]} 34. Rd7 {[%clk 0:00:57]}  Nxf3 {[%clk 0:03:45]} 35. gxf3 {[%clk 0:00:58]}  Rc3 {[%clk 0:03:44]} 36. h5 {[%clk 0:00:58]}  gxh5 {[%clk 0:03:44]} 37. Rd8+ {[%clk 0:01:00]}  Kg7 {[%clk 0:03:45]} 38. Rd4 {[%clk 0:01:01]}  Rxd4 {[%clk 0:03:45]} 0-1


[Site "Internet"]

[Event "Chessable Masters - Torneo preliminare"]
[White "Van Foreest, Lucas"]
[Black "Weetik, Vjacheslav"]
[WhiteFideId "1039792"]
[BlackFideId "4153472"]
[WhiteElo "2483"]
[BlackElo "2445"]
[Result "1-0"]
[Round "4"]
[TimeControl "600+2"]
[Date "2023.03.13"]
[WhiteClock "0:02:16"]
[BlackClock "0:00:03"]

1. d4 {[%clk 0:10:01]}  Nf6 {[%clk 0:09:58]} 2. c4 {[%clk 0:10:02]}  e6 {[%clk 0:09:51]} 3. Nc3 {[%clk 0:10:03]}  d5 {[%clk 0:09:46]} 4. cxd5 {[%clk 0:10:01]}  exd5 {[%clk 0:09:47]} 5. Bg5 {[%clk 0:10:02]}  c6 {[%clk 0:09:47]} 6. e3 {[%clk 0:10:03]}  Be7 {[%clk 0:09:47]} 7. Bd3 {[%clk 0:10:02]}  Nbd7 {[%clk 0:09:48]} 8. h3 {[%clk 0:10:02]}  g6 {[%clk 0:09:44]} 9. Bf4 {[%clk 0:09:49]}  Nh5 {[%clk 0:09:26]} 10. Bh2 {[%clk 0:09:50]}  Nb6 {[%clk 0:09:23]} 11. Nf3 {[%clk 0:09:48]}  Ng7 {[%clk 0:09:10]} 12. O-O {[%clk 0:09:43]}  O-O {[%clk 0:09:01]} 13. Rc1 {[%clk 0:09:25]}  Bd6 {[%clk 0:08:46]} 14. Ne5 {[%clk 0:09:16]}  f6 {[%clk 0:08:25]} 15. Nf3 {[%clk 0:09:16]}  Bxh2+ {[%clk 0:08:20]} 16. Kxh2 {[%clk 0:09:18]}  Bf5 {[%clk 0:08:19]} 17. e4 {[%clk 0:08:58]}  dxe4 {[%clk 0:08:16]} 18. Nxe4 {[%clk 0:08:58]}  Kh8 {[%clk 0:08:06]} 19. Kg1 {[%clk 0:08:50]}  Nd5 {[%clk 0:07:58]} 20. Re1 {[%clk 0:08:43]}  Ne6 {[%clk 0:07:09]} 21. Nc5 {[%clk 0:08:34]}  Nxc5 {[%clk 0:06:48]} 22. Bxf5 {[%clk 0:08:35]}  Na6 {[%clk 0:06:33]} 23. Bd3 {[%clk 0:08:25]}  Nac7 {[%clk 0:06:31]} 24. Qb3 {[%clk 0:08:20]}  Rb8 {[%clk 0:06:25]} 25. Qa3 {[%clk 0:08:19]}  a6 {[%clk 0:06:21]} 26. Nd2 {[%clk 0:08:20]}  Nb5 {[%clk 0:06:07]} 27. Bxb5 {[%clk 0:08:18]}  axb5 {[%clk 0:06:08]} 28. Ne4 {[%clk 0:08:19]}  Re8 {[%clk 0:05:28]} 29. Qg3 {[%clk 0:06:58]}  Qa5 {[%clk 0:05:10]} 30. a3 {[%clk 0:05:49]}  Rbd8 {[%clk 0:04:22]} 31. b4 {[%clk 0:05:24]}  Qa8 {[%clk 0:04:07]} 32. Qh4 {[%clk 0:05:13]}  Kg7 {[%clk 0:03:53]} 33. Nc5 {[%clk 0:04:58]}  Qxa3 {[%clk 0:03:20]} 34. Kh2 {[%clk 0:04:27]}  Qxb4 {[%clk 0:02:10]} 35. Re4 {[%clk 0:04:15]}  Qd2 {[%clk 0:00:41]} 36. Ra1 {[%clk 0:03:21]}  g5 {[%clk 0:00:32]} 37. Qg4 {[%clk 0:03:02]}  h5 {[%clk 0:00:18]} 38. Qxh5 {[%clk 0:02:40]}  Rxe4 {[%clk 0:00:18]} 39. Nxe4 {[%clk 0:02:42]}  Qf4+ {[%clk 0:00:20]} 40. Ng3 {[%clk 0:02:44]}  Rh8 {[%clk 0:00:17]} 41. Qe2 {[%clk 0:02:40]}  g4 {[%clk 0:00:09]} 42. Ra7 {[%clk 0:02:25]}  Qb8 {[%clk 0:00:11]} 43. Qxg4+ {[%clk 0:02:21]}  Kf8 {[%clk 0:00:05]} 44. Ra2 {[%clk 0:02:21]}  Qf4 {[%clk 0:00:04]} 45. Ra8+ {[%clk 0:02:18]}  Kf7 {[%clk 0:00:03]} 46. Qd7+ {[%clk 0:02:15]}  Kg6 {[%clk 0:00:03]} 47. Rxh8 {[%clk 0:02:16]} 1-0


[Site "Internet"]

[Event "Chessable Masters - Torneo preliminare"]
[White "Sychev, Klementy"]
[Black "Xu, Yi"]
[WhiteFideId "4114060"]
[BlackFideId "8605564"]
[WhiteElo "2484"]
[BlackElo "2402"]
[Result "1-0"]
[Round "4"]
[TimeControl "600+2"]
[Date "2023.03.13"]
[WhiteClock "0:00:14"]
[BlackClock "0:00:09"]

1. e4 {[%clk 0:09:58]}  e5 {[%clk 0:10:00]} 2. Nf3 {[%clk 0:09:58]}  Nf6 {[%clk 0:10:00]} 3. d4 {[%clk 0:08:39]}  Nxe4 {[%clk 0:10:00]} 4. Bd3 {[%clk 0:08:40]}  Nc6 {[%clk 0:09:48]} 5. Nxe5 {[%clk 0:08:34]}  Nxe5 {[%clk 0:09:43]} 6. dxe5 {[%clk 0:08:36]}  Nc5 {[%clk 0:09:40]} 7. Bc4 {[%clk 0:08:37]}  d6 {[%clk 0:09:40]} 8. Qf3 {[%clk 0:08:27]}  Ne6 {[%clk 0:09:39]} 9. Be3 {[%clk 0:06:29]}  dxe5 {[%clk 0:09:39]} 10. Nd2 {[%clk 0:06:30]}  Bd6 {[%clk 0:09:23]} 11. O-O-O {[%clk 0:06:31]}  O-O {[%clk 0:09:20]} 12. Ne4 {[%clk 0:06:24]}  Kh8 {[%clk 0:09:08]} 13. h4 {[%clk 0:05:56]}  Qe7 {[%clk 0:08:43]} 14. Nxd6 {[%clk 0:05:04]}  cxd6 {[%clk 0:08:42]} 15. Qd5 {[%clk 0:05:06]}  Rd8 {[%clk 0:07:26]} 16. Rd2 {[%clk 0:04:32]}  f6 {[%clk 0:07:13]} 17. Rhd1 {[%clk 0:02:49]}  Nc7 {[%clk 0:06:58]} 18. Qe4 {[%clk 0:02:45]}  Be6 {[%clk 0:06:04]} 19. Bxe6 {[%clk 0:02:30]}  Nxe6 {[%clk 0:06:04]} 20. Qb4 {[%clk 0:02:27]}  a5 {[%clk 0:04:10]} 21. Qa3 {[%clk 0:02:27]}  Ra6 {[%clk 0:03:36]} 22. Rd5 {[%clk 0:02:28]}  a4 {[%clk 0:03:25]} 23. Qb4 {[%clk 0:02:28]}  a3 {[%clk 0:03:13]} 24. b3 {[%clk 0:02:04]}  Qc7 {[%clk 0:03:12]} 25. Rb5 {[%clk 0:02:01]}  Rc8 {[%clk 0:02:53]} 26. Rd2 {[%clk 0:01:35]}  Rc6 {[%clk 0:02:18]} 27. c4 {[%clk 0:01:35]}  Nc5 {[%clk 0:02:18]} 28. Bxc5 {[%clk 0:01:16]}  dxc5 {[%clk 0:02:16]} 29. Qxa3 {[%clk 0:01:17]}  e4 {[%clk 0:02:04]} 30. Qa7 {[%clk 0:01:06]}  Qe5 {[%clk 0:01:46]} 31. Rxb7 {[%clk 0:00:39]}  Rd6 {[%clk 0:00:23]} 32. Rxd6 {[%clk 0:00:25]}  Qxd6 {[%clk 0:00:22]} 33. Rxg7 {[%clk 0:00:16]}  Qf4+ {[%clk 0:00:20]} 34. Kb1 {[%clk 0:00:11]}  Qh6 {[%clk 0:00:13]} 35. Re7 {[%clk 0:00:04]}  Qg6 {[%clk 0:00:05]} 36. Qd7 {[%clk 0:00:02]}  e3+ {[%clk 0:00:03]} 37. Kb2 {[%clk 0:00:03]}  Rf8 {[%clk 0:00:04]} 38. fxe3 {[%clk 0:00:03]}  Qxg2+ {[%clk 0:00:05]} 39. Kc3 {[%clk 0:00:04]}  Qg6 {[%clk 0:00:04]} 40. Qd3 {[%clk 0:00:06]}  f5 {[%clk 0:00:05]} 41. Qd5 {[%clk 0:00:07]}  Qh6 {[%clk 0:00:03]} 42. Qe5+ {[%clk 0:00:07]}  Kg8 {[%clk 0:00:05]} 43. Qe6+ {[%clk 0:00:09]}  Qxe6 {[%clk 0:00:05]} 44. Rxe6 {[%clk 0:00:11]}  Ra8 {[%clk 0:00:06]} 45. a4 {[%clk 0:00:12]}  Kf7 {[%clk 0:00:07]} 46. Re5 {[%clk 0:00:13]}  f4 {[%clk 0:00:09]} 47. exf4 {[%clk 0:00:14]} 1-0


[Site "Internet"]